bitfinex/quotes_ETHUSD_20220117
["timestamp","ask_amount","ask_price","bid_price","bid_amount"]
[1642443658830,0.00170527,3184.4,3184.1,14.87918795]
[1642443659230,0.00113684,3184.3,3184.1,14.87918795]
[1642443659631,0.00454738,3184.9,3184.1,14.87918795]
[1642443660034,0.00397896,3184.8,3184.1,1.47918795]
[1642443660298,0.01402112,3184.7,3184.1,1.47918795]
[1642443660487,0.00341054,3184.7,3184.6,1.22892051]
[1642443660695,0.6,3185.0,3184.6,1.22892051]
[1642443661090,0.00454738,3184.9,3184.6,1.22892051]
[1642443661490,0.00397896,3184.8,3184.6,1.22892051]
[1642443661892,0.00341054,3184.7,3184.6,2.70870235]
[1642443662292,0.00341054,3184.7,3183.9,2.24275613]
[1642443662493,0.00341054,3184.7,3184.0,0.3]
[1642443662690,4.92101657,3185.0,3184.0,1.3]
[1642443662691,0.00284211,3184.6,3184.0,1.3]
[1642443662890,0.00284211,3184.6,3184.1,5.65730285]
[1642443663092,0.00227369,3184.5,3184.2,1.21103793]
[1642443663291,0.00227369,3184.5,3184.3,5.15621261]
[1642443663491,4.92905222,3185.1,3184.4,18.6]
[1642443663925,0.00511581,3185.0,3184.4,18.6]
[1642443664126,0.00511581,3185.0,3184.9,1.10277922]
[1642443664328,0.00803565,3185.1,3184.5,6.88815569]
[1642443664329,1.99722078,3184.6,3184.5,6.88815569]
[1642443664531,1.99722078,3184.6,3184.5,10.8191804]
[1642443665025,1.99722078,3184.6,3184.5,16.33815569]
[1642443665426,0.00454738,3184.9,3184.6,13.0]
[1642443665627,0.00454738,3184.9,3184.7,5.2537932]
[1642443665826,0.00803565,3185.1,3184.8,17.57614268]
[1642443666027,0.00803565,3185.1,3184.7,1.2208]
[1642443666225,0.00511581,3185.0,3184.7,5.06187219]
[1642443666426,0.00511581,3185.0,3184.8,1.54407228]
[1642443666626,0.00454738,3184.9,3184.8,1.54407228]
[1642443667427,2.69110695,3184.9,3184.7,1.2208]
[1642443667674,3.66810695,3184.9,3184.7,1.2208]
[1642443667877,0.00397896,3184.8,3184.7,1.2208]
[1642443668276,2.69053853,3184.8,3184.7,1.2208]
[1642443670278,4.84566904,3184.8,3184.7,1.2208]
[1642443670478,11.50256904,3184.8,3184.7,1.2208]
[1642443670877,15.35256904,3184.8,3184.7,1.2208]
[1642443671078,0.00577878,3184.6,3183.5,5.3597]
[1642443671282,6.6569,3184.5,3183.8,11.7884]
[1642443671525,0.377,3184.4,3183.9,0.00113685]
[1642443671724,6.2799,3184.3,3183.9,0.00113685]
[1642443671926,0.377,3184.2,3183.9,0.00113685]
[1642443672124,1.30143666,3184.1,3183.9,0.00113685]
[1642443672329,4.4355,3184.0,3183.9,0.00113685]
[1642443672524,0.7855,3184.0,3183.9,0.00113685]
[1642443672723,0.7855,3184.0,3183.8,0.00170527]
[1642443672923,0.677,3184.1,3183.8,0.00170527]
[1642443673323,0.677,3184.1,3183.7,7.5936]
[1642443673324,0.78545,3184.0,3183.7,7.49530527]
[1642443673526,0.78658684,3184.0,3183.7,7.49530527]
[1642443673729,2.28528098,3184.0,3183.7,7.49530527]
[1642443673936,2.68655957,3183.9,3183.7,7.49530527]
[1642443674432,2.98655957,3183.9,3183.7,7.49530527]
[1642443675272,2.68655957,3183.9,3183.7,8.77454539]
[1642443675876,2.68655957,3183.8,3183.7,8.77454539]
[1642443676774,0.3,3183.8,3183.7,8.77454539]
[1642443676974,1.6,3183.8,3183.7,8.77454539]
[1642443677176,1.3,3183.8,3183.7,8.77454539]
[1642443677378,1.6,3183.8,3183.7,8.77454539]
[1642443677775,4.28655957,3183.8,3183.7,8.77454539]
[1642443678479,0.01402112,3183.7,3181.2,0.00305]
[1642443678679,4.67611621,3183.8,3181.6,2.3623]
[1642443678680,0.377,3183.6,3181.6,2.3623]
[1642443678933,6.6569,3183.5,3181.6,2.3623]
[1642443679128,1.0,3183.3,3181.6,2.3623]
[1642443679329,1.25689666,3182.9,3182.5,1.46208226]
[1642443679528,0.012025,3183.1,3182.5,1.46208226]
[1642443679729,0.012025,3183.1,3182.6,0.00682109]
[1642443679936,0.677,3183.2,3182.9,1.24590167]
[1642443680130,6.2799,3183.1,3183.0,7.8484]
[1642443680331,6.2799,3183.1,3183.0,7.85294739]
[1642443680630,6.2799,3183.1,3183.0,8.97943939]
[1642443681028,6.2799,3183.1,3183.0,7.85294739]
[1642443681231,8.96645957,3183.1,3183.0,7.85294739]
[1642443681830,9.75210957,3183.1,3183.0,7.85294739]
[1642443682030,8.96645957,3183.1,3183.0,7.85294739]
[1642443683079,11.22946656,3183.1,3183.0,7.85294739]
[1642443683482,13.54381656,3183.1,3183.0,7.85294739]
[1642443683881,13.54381656,3183.1,3183.0,14.50294739]
[1642443684084,1.47735699,3183.2,3183.0,14.50294739]
[1642443684284,1.47735699,3183.2,3183.0,7.85294739]
[1642443684484,5.699e-05,3183.2,3183.1,7.65397897]
[1642443684988,5.699e-05,3183.2,3183.1,0.00397897]
[1642443685784,4.03025931,3184.0,3183.2,0.04409921]
[1642443685985,0.00113684,3184.0,3183.9,1.54708585]
[1642443686184,0.00113684,3184.0,3183.0,7.8484]
[1642443686433,0.00397896,3184.0,3183.0,7.8484]
[1642443686625,0.00341054,3183.9,3183.2,1.31711807]
[1642443686825,0.00341054,3183.9,3183.8,1.3586637]
[1642443687125,7.91270287,3184.8,3184.3,1.3249826]
[1642443687326,6.2805,3184.5,3184.4,3.08646494]
[1642443688225,6.2805,3184.5,3184.4,4.36791272]
[1642443688827,6.2805,3184.5,3184.4,10.21791272]
[1642443689232,0.00803565,3185.1,3184.6,0.02347549]
[1642443689429,6.13390969,3185.5,3184.8,1.49929173]
[1642443689829,6.13390969,3185.5,3184.6,0.7078]
[1642443690029,4.05068096,3186.1,3184.5,1.5594]
[1642443690030,6.13390969,3185.7,3184.5,1.2456]
[1642443690282,0.0122386,3185.6,3184.5,1.2456]
[1642443690476,0.0122386,3185.6,3184.4,3.08646494]
[1642443690477,18.26,3185.4,3184.4,3.08646494]
[1642443690677,0.01229241,3184.9,3184.4,3.08646494]
[1642443690875,0.01229241,3184.9,3183.2,8.2239]
[1642443690876,1.0,3184.6,3183.2,8.2239]
[1642443691075,6.6563,3184.5,3184.0,5.6776]
[1642443691278,1.34706752,3184.4,3184.0,5.6776]
[1642443691477,0.377,3184.3,3184.0,5.6776]
[1642443691677,0.377,3184.3,3184.0,4.6776]
[1642443691678,6.66198423,3184.3,3184.0,4.6776]
[1642443691877,0.00511581,3184.2,3184.0,4.6776]
[1642443692077,6.6563,3184.1,3184.0,4.6776]
[1642443692278,6.66084739,3184.1,3184.0,4.6776]
[1642443692478,7.96084739,3184.1,3184.0,4.6776]
[1642443692679,6.66084739,3184.1,3184.0,11.8276]
[1642443692883,6.66084739,3184.1,3184.0,13.38533673]
[1642443693579,6.66084739,3184.1,3184.0,14.52757556]
[1642443694034,6.66084739,3184.1,3184.0,6.23533673]
[1642443694633,11.36084739,3184.1,3184.0,6.23533673]
[1642443694834,9.76084739,3184.1,3184.0,6.23533673]
[1642443695233,9.38384739,3184.1,3184.0,6.23533673]
[1642443695635,9.38384739,3184.1,3184.0,16.53533673]
[1642443696033,1.46993673,3184.5,3184.1,3.7]
[1642443696238,0.01221165,3185.6,3184.1,3.7]
[1642443696239,5.37216329,3185.9,3184.4,0.01273396]
[1642443696435,5.37216329,3185.9,3185.6,1.09761057]
[1642443696635,6.278,3185.8,3185.3,1.0706]
[1642443697235,6.278,3185.8,3185.7,1.32018141]
[1642443697679,6.2876632,3185.8,3185.7,1.32018141]
[1642443698081,5.715,3185.6,3185.1,2.2752]
[1642443698479,0.02074324,3185.5,3185.1,2.2752]
[1642443698681,6.278,3185.8,3185.3,20.5847031]
[1642443698682,4.42044324,3185.8,3185.3,20.5847031]
[1642443698881,0.377,3187.0,3186.8,1.32563002]
[1642443699082,0.377,3187.0,3186.9,1.5228813]
[1642443699382,0.00852635,3187.0,3186.0,0.01263329]
[1642443699580,0.031714,3186.9,3186.0,0.01263329]
[1642443699784,0.00795792,3186.9,3186.0,0.01263329]
[1642443699982,0.0073895,3186.8,3186.0,0.01263329]
[1642443700382,0.00682108,3186.7,3186.5,1.21178887]
[1642443700782,0.00625265,3186.6,3186.5,1.21178887]
[1642443701622,0.00625265,3186.6,3186.5,6.86178887]
[1642443701823,0.00625265,3186.6,3186.5,1.21178887]
[1642443702229,0.00625265,3186.6,3186.5,5.42155694]
[1642443702430,0.00625265,3186.6,3186.5,5.40339103]
[1642443702628,0.00625265,3186.6,3186.5,17.61178887]
[1642443703831,0.00625265,3186.6,3186.5,1.21178887]
[1642443704032,0.00625265,3186.6,3186.2,7.0155]
[1642443704433,0.00954184,3186.5,3186.2,7.0155]
[1642443704633,0.00568423,3186.5,3186.0,1.1311]
[1642443704934,0.38211581,3186.4,3186.0,1.1311]
[1642443705182,1.67474983,3186.3,3186.0,1.1311]
[1642443705382,2.97929721,3186.3,3186.0,1.1311]
[1642443705582,0.00397896,3186.2,3186.0,1.1311]
[1642443705982,0.00341054,3186.1,3186.0,1.1311]
[1642443706584,0.00341054,3186.1,3185.2,14.95195332]
[1642443706785,0.00341054,3186.1,3185.2,15.68670142]
[1642443706985,0.00454739,3186.0,3185.3,0.0127316]
[1642443707185,0.00454739,3186.0,3185.9,2.59993774]
[1642443707384,0.0033798,3185.8,3185.2,11.99730528]
[1642443707785,0.00284212,3185.7,3185.2,11.99730528]
[1642443707985,0.00284212,3185.7,3185.3,0.7846986]
[1642443708187,0.0022737,3185.6,3185.4,4.14646311]
[1642443708589,1.4812922,3185.9,3185.5,21.27094005]
[1642443708785,1.4812922,3185.9,3185.6,0.01836347]
[1642443709035,0.00341055,3185.8,3185.7,1.46047372]
[1642443709235,0.00341055,3185.8,3185.5,1.47094005]
[1642443709638,0.02405624,3185.7,3185.5,1.47094005]
[1642443709838,0.00284212,3185.7,3185.5,1.47094005]
[1642443710038,0.0022737,3185.6,3185.5,1.47094005]
[1642443710437,0.0022737,3185.6,3185.5,7.07094005]
[1642443710638,0.0022737,3185.6,3185.5,8.21836308]
[1642443710949,2.68830758,3185.6,3185.5,8.21836308]
[1642443711539,2.68830758,3185.6,3185.5,22.24559425]
[1642443711742,3.69838666,3186.4,3185.9,0.78445]
[1642443711743,6.38488161,3186.4,3185.9,0.78445]
[1642443711939,2.68649495,3186.4,3186.0,5.79417128]
[1642443712138,0.00397896,3186.3,3186.0,6.09417128]
[1642443712339,0.00397896,3186.3,3186.2,16.26103981]
[1642443712541,2.68649495,3186.4,3186.2,20.70286935]
[1642443712777,2.68649495,3186.3,3186.2,20.70286935]
[1642443712976,2.68649495,3186.3,3186.2,1.56103981]
[1642443713175,2.68649495,3186.3,3186.2,1.86103981]
[1642443713579,2.68649495,3186.3,3186.2,1.56103981]
[1642443713980,2.68649495,3186.3,3186.0,1.1747317]
[1642443714179,0.00568423,3186.6,3186.0,1.1747317]
[1642443714379,0.00341054,3186.2,3186.0,1.1747317]
[1642443714580,0.00511581,3186.5,3186.0,1.1747317]
[1642443714781,0.00284212,3186.1,3186.0,1.9592973]
[1642443715082,0.00284212,3186.1,3186.0,2.22969952]
[1642443715481,0.00284212,3186.1,3186.0,10.02969952]
[1642443715681,0.00284212,3186.1,3186.0,2.22969952]
[1642443716626,0.00284212,3186.1,3185.7,2.8085814]
[1642443716826,0.00284212,3186.1,3185.7,1.2395]
[1642443717028,0.00227369,3186.0,3185.7,1.2395]
[1642443717325,0.00170527,3185.9,3185.7,1.2395]
[1642443717825,0.00113685,3185.8,3185.7,1.2395]
[1642443718929,1.11157899,3185.8,3185.7,1.2395]
[1642443719129,0.03812067,3185.7,3185.2,8.40158426]
[1642443719331,1.11157899,3185.8,3185.2,8.40158426]
[1642443719530,1.11157899,3185.8,3185.3,0.00170527]
[1642443720379,1.41157899,3185.8,3185.3,0.00170527]
[1642443720778,0.39372967,3185.7,3185.3,0.00170527]
[1642443720978,0.377,3185.7,3185.3,0.00170527]
[1642443721178,6.29815256,3185.6,3185.3,0.00170527]
[1642443721381,6.2784,3185.6,3185.3,0.00170527]
[1642443721580,1.0,3185.5,3185.2,0.0022737]
[1642443721778,6.2784,3185.4,3185.2,0.0022737]
[1642443722179,1.28496897,3185.3,3185.2,0.0022737]
[1642443722882,6.2784,3185.4,3185.2,0.01102629]
[1642443723180,6.2784,3185.4,3185.2,0.0022737]
[1642443723181,2.68649495,3185.3,3185.2,0.0022737]
[1642443723379,2.68649495,3185.3,3185.2,5.6522737]
[1642443723679,2.68649495,3185.3,3185.2,0.0022737]
[1642443723935,2.68649495,3185.3,3185.2,1.51886826]
[1642443724331,2.68649495,3185.3,3185.2,17.96886826]
[1642443724530,0.00113685,3185.8,3185.3,16.95]
[1642443724731,0.00113685,3185.8,3185.3,18.45265492]
[1642443724933,0.00113685,3185.8,3185.4,0.78572685]
[1642443725831,0.02786643,3185.7,3185.4,0.00113685]
[1642443726030,0.00113685,3185.8,3185.4,0.00113685]
[1642443726436,0.00113685,3185.8,3185.5,0.82218659]
[1642443726632,0.00113685,3185.8,3185.5,19.08218659]
[1642443726831,0.00113685,3185.8,3185.6,4.49241425]
[1642443727032,0.00113685,3185.8,3185.6,6.27693205]
[1642443727230,0.00113685,3185.8,3185.7,24.09223839]
[1642443727432,0.00113685,3185.8,3185.7,26.40282908]
[1642443727683,0.00113685,3185.8,3185.7,27.40282908]
[1642443727878,0.00113685,3185.8,3185.7,2.52610069]
[1642443728078,0.00113685,3185.8,3185.7,1.52610069]
[1642443728277,0.00113685,3185.8,3185.7,13.02610069]
[1642443728878,0.00113685,3185.8,3185.4,0.00113685]
[1642443729086,0.00435866,3185.7,3185.4,0.00113685]
[1642443729482,0.00113685,3185.8,3185.4,0.00113685]
[1642443729883,0.0178649,3185.7,3185.4,0.00113685]
[1642443730084,0.00113685,3185.8,3185.5,1.15310327]
[1642443734142,0.00113685,3185.8,3185.6,1.46588]
[1642443734540,0.00113685,3185.8,3185.6,2.46588]
[1642443734741,0.00113685,3185.8,3185.6,1.6813]
[1642443735576,0.00113685,3185.8,3185.6,2.08441]
[1642443735777,0.00113685,3185.8,3185.7,20.53448]
[1642443736176,0.00113685,3185.8,3185.7,21.53448]
[1642443736678,1.47705384,3186.3,3185.8,18.91854338]
[1642443736879,1.47705384,3186.3,3185.9,0.7844821]
[1642443737076,0.00170527,3186.1,3186.0,10.50503674]
[1642443738080,0.00170527,3186.1,3186.0,12.58950674]
[1642443738279,0.00170527,3186.1,3186.0,10.50503674]
[1642443738929,0.00170527,3186.1,3186.0,10.80503674]
[1642443739133,0.00170527,3186.1,3186.0,11.80503674]
[1642443740534,1.48069741,3186.1,3186.0,11.80503674]
[1642443740738,1.48069741,3186.1,3186.0,10.50503674]
[1642443740937,1.48069741,3186.1,3186.0,1.10503674]
[1642443742784,0.00170527,3186.1,3186.0,1.10503674]
[1642443742990,0.00170527,3186.1,3185.4,0.00113685]
[1642443743289,0.026233,3186.0,3185.2,0.00341055]
[1642443743488,0.00113684,3186.0,3185.2,0.00341055]
[1642443743688,0.00845986,3185.9,3185.2,0.00341055]
[1642443743987,0.00845986,3185.9,3185.2,1.362593]
[1642443744187,1.420289,3185.9,3185.6,1.54791746]
[1642443744388,1.872289,3185.9,3185.6,1.54791746]
[1642443744586,1.872289,3185.9,3185.3,0.00284212]
[1642443744792,2.172289,3185.9,3185.3,0.00284212]
[1642443744989,2.21034977,3185.4,3185.3,0.00284212]
[1642443745188,2.21034977,3185.4,3185.2,0.00341055]
[1642443745588,2.51034977,3185.4,3184.9,0.00511582]
[1642443745787,1.17980594,3185.1,3184.9,0.00511582]
[1642443745988,2.21034977,3185.4,3184.9,0.00511582]
[1642443746190,2.21034977,3185.4,3185.0,0.00921608]
[1642443746431,2.21034977,3185.4,3184.9,0.00511582]
[1642443746432,1.47206838,3185.4,3184.8,0.00568424]
[1642443746632,1.47206838,3185.4,3185.1,0.00397897]
[1642443746833,1.47206838,3185.4,3184.8,0.00568424]
[1642443747232,2.75479398,3185.4,3184.8,0.00568424]
[1642443747538,2.66234977,3185.7,3185.0,0.00685873]
[1642443747539,1.47206838,3185.5,3185.0,0.00685873]
[1642443747737,1.47206838,3185.5,3184.9,1.38481348]
[1642443747938,1.47206838,3185.5,3185.1,0.00397897]
[1642443748139,1.47206838,3185.5,3185.0,0.00454739]
[1642443748540,4.15874632,3185.6,3185.4,1.10335423]
[1642443748938,4.15874632,3185.6,3185.5,0.00170527]
[1642443750197,4.15874632,3185.6,3185.5,5.55170527]
[1642443750580,0.00113684,3186.0,3185.6,6.5]
[1642443750782,0.00113684,3186.0,3185.6,6.8]
[1642443750783,2.68645415,3185.7,3185.6,6.8]
[1642443750981,2.68645415,3185.7,3185.6,12.95]
[1642443751181,2.68645415,3185.7,3185.6,6.80113685]
[1642443751581,0.00532793,3185.8,3185.6,0.00113685]
[1642443751983,0.00113684,3186.0,3185.7,8.85]
[1642443752182,0.00113684,3186.0,3185.8,0.02982349]
[1642443752382,0.00113684,3186.0,3185.7,8.85]
[1642443752383,0.00113684,3186.0,3185.9,2.87638562]
[1642443752981,0.00113684,3186.0,3185.9,6.52638562]
[1642443753482,0.00113684,3186.0,3185.9,2.87638562]
[1642443754334,0.00113684,3186.0,3185.9,2.82638562]
[1642443754936,0.00113684,3186.0,3185.9,12.17638562]
[1642443756038,0.00113684,3186.0,3185.9,16.32638562]
[1642443756344,0.00113684,3186.0,3185.9,16.92638562]
[1642443756537,0.00113684,3186.0,3185.9,16.32638562]
[1642443756737,0.00113684,3186.0,3185.9,12.17638562]
[1642443757788,0.00113684,3186.0,3185.9,2.82638562]
[1642443757990,0.00113684,3186.0,3185.9,1.29246644]
[1642443758991,0.00113684,3186.0,3185.6,0.00113685]
[1642443759690,0.00588142,3185.9,3185.6,0.00113685]
[1642443759896,0.00113684,3186.0,3185.6,0.00113685]
[1642443760394,0.00113684,3186.0,3185.7,1.20042348]
[1642443760395,1.2611977,3186.0,3185.7,1.20042348]
[1642443760594,0.00113684,3186.0,3185.7,1.20042348]
[1642443760891,0.00113684,3186.0,3185.8,0.02601992]
[1642443761191,0.00113684,3186.0,3185.7,1.20042348]
[1642443761431,0.00113684,3186.0,3185.9,6.97829954]
[1642443762934,0.00113684,3186.0,3185.9,19.97829954]
[1642443763136,0.00113684,3186.0,3185.9,19.67829954]
[1642443763334,0.00113684,3186.0,3185.9,6.97829954]
[1642443763535,0.00113684,3186.0,3185.9,7.27829954]
[1642443763938,0.00113684,3186.0,3185.9,21.42829954]
[1642443764538,0.00113684,3186.0,3185.9,21.12829954]
[1642443765583,0.00113684,3186.0,3185.9,6.97829954]
[1642443765983,0.00113684,3186.0,3185.9,14.92829954]
[1642443766782,0.00113684,3186.0,3185.9,6.97829954]
[1642443767886,0.00113684,3186.0,3185.9,14.22829954]
[1642443771736,0.00113684,3186.0,3185.9,18.52829954]
[1642443772539,0.00113684,3186.0,3185.9,18.82829954]
[1642443772788,2.6859861,3186.7,3186.0,19.75]
[1642443772990,2.6859861,3187.0,3186.1,18.712]
[1642443773186,0.00284212,3186.5,3186.1,18.712]
[1642443773387,2.21034977,3187.4,3186.4,18.26]
[1642443773597,2.21034977,3187.4,3186.5,1.68801113]
[1642443773789,0.00227369,3186.9,3186.6,0.78407]
[1642443773991,2.21034977,3187.4,3186.7,0.752]
[1642443774192,0.00170527,3187.2,3186.8,18.27024334]
[1642443774393,2.21034977,3187.4,3187.0,5.45]
[1642443774696,2.21034977,3187.9,3187.8,1.3327884]
[1642443776197,2.21034977,3188.2,3187.8,2.58202596]
[1642443776431,0.92094487,3187.5,3187.2,3.1364723]
[1642443776631,0.00824528,3187.4,3187.3,10.23719627]
[1642443776831,0.92094487,3187.5,3187.3,10.23719627]
[1642443777230,0.92094487,3187.5,3187.3,11.02133577]
[1642443777430,0.92094487,3187.5,3187.4,11.76748556]
[1642443777832,0.92265014,3187.5,3187.4,11.76748556]
[1642443778033,0.92265014,3187.5,3187.4,12.55155556]
[1642443778634,0.92265014,3187.5,3187.4,12.85155556]
[1642443779037,0.92265014,3187.5,3187.4,12.06748556]
[1642443779637,0.92265014,3187.5,3187.4,12.85156556]
[1642443779840,0.92265014,3187.5,3187.4,17.80156556]
[1642443780038,0.92265014,3187.5,3187.4,18.10156556]
[1642443780284,0.92265014,3187.5,3187.4,12.06748556]
[1642443780685,0.92265014,3187.5,3187.4,21.56748556]
[1642443780882,0.92265014,3187.5,3187.4,39.82748556]
[1642443781097,3.69838666,3189.1,3187.7,19.75]
[1642443781369,8.69178222,3189.6,3188.2,1.20291576]
[1642443781498,8.69178222,3189.6,3189.5,1.14571435]
[1642443781499,4.93118222,3189.6,3189.5,1.14571435]
[1642443781886,4.94311912,3189.6,3189.5,1.14571435]
[1642443782089,0.0119369,3189.6,3189.5,2.5651787]
[1642443782488,0.0119369,3189.6,3189.5,3.3929787]
[1642443783489,0.0119369,3189.6,3189.5,2.5651787]
[1642443783689,0.02376507,3189.5,3188.9,2.35105]
[1642443783931,0.02376507,3189.5,3188.5,0.452]
[1642443784138,0.01080005,3189.4,3188.1,0.1637834]
[1642443784532,8.96024071,3189.8,3188.1,0.1637834]
[1642443784533,0.01023163,3189.3,3188.1,0.1637834]
[1642443784733,1.46369357,3189.0,3188.1,0.1637834]
[1642443785133,0.00795793,3188.9,3188.1,0.1637834]
[1642443785535,0.00738951,3188.8,3188.1,0.1637834]
[1642443785733,0.00738951,3188.8,3188.5,1.44862712]
[1642443785933,0.00682109,3188.7,3188.5,1.44862712]
[1642443786333,1.46369357,3189.0,3188.4,1.19798985]
[1642443786334,0.00625266,3188.6,3188.4,1.19798985]
[1642443786534,0.00625266,3188.6,3188.0,1.1435]
[1642443786739,0.00568424,3188.5,3188.0,1.92746]
[1642443786937,0.00568424,3188.5,3188.0,1.1435]
[1642443787136,0.00511582,3188.4,3188.0,1.1435]
[1642443787339,1.48497398,3188.3,3188.0,1.1435]
[1642443787538,1.48952137,3188.3,3188.0,1.1435]
[1642443787787,0.00397897,3188.2,3188.0,1.36292512]
[1642443788291,0.00341055,3188.1,3187.8,1.2374]
[1642443788492,0.00341055,3188.1,3186.5,5.94739244]
[1642443788493,0.00341055,3188.1,3186.9,0.00170527]
[1642443788695,0.00284212,3188.0,3186.9,0.00170527]
[1642443788890,0.00284212,3188.0,3186.7,0.78881738]
[1642443788891,0.45484212,3188.0,3186.7,0.78881738]
[1642443789093,0.45484212,3188.0,3186.7,0.78427]
[1642443789094,0.0022737,3187.9,3186.7,0.78427]
[1642443789299,0.0022737,3187.9,3186.8,0.00397896]
[1642443789496,0.00170527,3187.8,3187.6,1.21970959]
[1642443789896,0.452,3188.2,3187.4,1.4284519]
[1642443789897,1.48587215,3187.6,3187.4,1.4284519]
[1642443790798,1.48587215,3187.6,3187.5,7.38201258]
[1642443791197,1.48587215,3187.6,3187.5,1.38201258]
[1642443791636,1.48587215,3187.8,3187.5,1.38201258]
[1642443792040,0.00113685,3187.7,3187.5,1.38201258]
[1642443793441,0.00113685,3187.7,3187.5,2.38201258]
[1642443793642,0.00113685,3187.7,3187.5,1.38201258]
[1642443795048,0.00113685,3187.7,3187.5,2.38201258]
[1642443795286,0.00113685,3187.7,3187.5,1.38201258]
[1642443797095,0.00113685,3187.7,3187.5,2.38201258]
[1642443797291,0.00113685,3187.7,3187.5,1.38201258]
[1642443797491,0.00113685,3187.7,3187.5,2.38201258]
[1642443798936,0.00113685,3187.7,3187.0,7.8789]
[1642443799141,0.00113685,3187.7,3187.0,6.8789]
[1642443799341,0.00113685,3187.7,3187.1,0.00227369]
[1642443799938,1.52863239,3187.4,3187.1,0.00227369]
[1642443800540,1.82863239,3187.4,3187.1,0.00227369]
[1642443800741,0.3,3187.4,3187.1,0.02678015]
[1642443800940,1.487009,3187.7,3187.0,0.00284211]
[1642443801141,1.487009,3187.7,3187.2,0.00170527]
[1642443801345,2.68524091,3187.3,3187.0,0.00284211]
[1642443801842,2.23160431,3187.6,3187.3,18.9]
[1642443802041,2.23160431,3187.6,3187.5,18.26]
[1642443802042,1.34090431,3187.6,3187.5,18.26]
[1642443802442,1.34090431,3187.6,3187.5,9.65]
[1642443802984,4.116e-05,3187.7,3187.6,8.0]
[1642443803185,4.116e-05,3187.7,3187.6,9.0]
[1642443803387,4.116e-05,3187.7,3187.6,8.0]
[1642443803585,4.116e-05,3187.7,3187.6,9.0]
[1642443803787,4.116e-05,3187.7,3187.6,8.0]
[1642443804388,4.116e-05,3187.7,3187.6,12.75]
[1642443804590,4.116e-05,3187.7,3187.6,13.75]
[1642443804795,4.116e-05,3187.7,3187.6,32.61]
[1642443804990,2.97547242,3188.6,3188.5,8.21888601]
[1642443805588,2.97547242,3189.0,3188.5,9.21888601]
[1642443805789,2.97547242,3189.0,3188.6,1.33457076]
[1642443805989,2.98286193,3189.0,3188.6,1.33457076]
[1642443806466,2.98286193,3189.0,3188.7,0.01262565]
[1642443806669,0.00656754,3188.9,3188.5,6.75]
[1642443806866,2.98286193,3189.0,3188.5,6.75]
[1642443806867,0.00738951,3189.0,3188.5,7.53385]
[1642443807070,0.00625266,3188.8,3188.5,7.83385]
[1642443807266,2.97547242,3189.2,3188.6,1.0]
[1642443807267,0.00682108,3188.9,3188.6,1.0]
[1642443807470,0.00568424,3188.7,3188.6,1.0]
[1642443807666,0.00625266,3188.8,3188.6,5.5949556]
[1642443807867,2.87250371,3189.2,3189.1,6.70244636]
[1642443808067,2.87250371,3189.2,3189.1,5.03873429]
[1642443808267,2.87250371,3189.2,3189.1,2.23628793]
[1642443808467,2.87250371,3189.4,3188.6,3.13473]
[1642443808667,2.87250371,3189.4,3188.6,1.56732]
[1642443808867,0.00227369,3189.1,3188.6,1.56732]
[1642443809368,2.87250371,3189.4,3188.9,7.06024972]
[1642443809369,0.00170527,3189.0,3188.9,7.06024972]
[1642443809568,0.00170527,3189.0,3188.9,7.1]
[1642443809971,0.00170527,3189.0,3188.5,1.56751]
[1642443810192,0.00912162,3188.9,3188.7,1.0]
[1642443810397,0.00912162,3188.9,3188.5,3.9513315]
[1642443810398,0.00113684,3188.9,3188.5,3.9513315]
[1642443810598,0.00113684,3188.9,3188.6,2.23474788]
[1642443811202,0.00113684,3188.9,3188.6,1.23474788]
[1642443811399,0.00113684,3188.9,3188.6,2.23474788]
[1642443811600,0.00113684,3188.9,3188.6,1.23474788]
[1642443811601,1.49422108,3188.9,3188.6,1.23474788]
[1642443811899,1.49422108,3188.9,3188.6,2.34994376]
[1642443812102,1.49422108,3188.9,3188.6,2.23474788]
[1642443812504,0.00113684,3188.9,3188.6,2.23474788]
[1642443812901,0.00113684,3188.9,3188.6,1.23474788]
[1642443813100,0.00113684,3188.9,3188.6,2.23474788]
[1642443813401,0.00113684,3188.9,3188.7,18.26]
[1642443813600,0.00113684,3188.9,3188.8,32.81]
[1642443813800,0.00113684,3188.9,3188.8,33.11]
[1642443814657,0.00113684,3188.9,3188.8,33.89366]
[1642443814858,1.49308424,3189.0,3188.9,16.15]
[1642443815066,2.23962636,3189.3,3188.9,35.71]
[1642443815262,2.23962636,3189.3,3189.1,1.40526076]
[1642443815263,1.4949761,3189.3,3189.1,1.40526076]
[1642443815461,0.00170527,3189.2,3189.1,2.18882076]
[1642443815662,0.00170527,3189.2,3189.1,3.78882076]
[1642443815861,0.00170527,3189.2,3189.1,3.48882076]
[1642443816162,0.00170527,3189.2,3188.6,1.5674259]
[1642443816362,0.02849004,3189.1,3188.6,18.26]
[1642443816562,0.00113685,3189.1,3188.8,19.04367]
[1642443816962,1.41128013,3189.1,3188.9,1.0]
[1642443817164,1.41128013,3189.1,3188.8,18.26]
[1642443817365,1.41128013,3189.1,3188.9,1.0]
[1642443817571,1.41128013,3189.1,3188.9,1.3]
[1642443818197,1.49623524,3189.1,3188.9,2.8674724]
[1642443818398,1.49623524,3189.1,3188.9,3.6511424]
[1642443819005,0.00113685,3189.1,3188.9,3.6511424]
[1642443819205,0.00113685,3189.1,3188.9,21.9111424]
[1642443819606,0.00113685,3189.1,3188.9,21.1274724]
[1642443819806,0.00113685,3189.1,3188.9,18.26]
[1642443821206,1.49509839,3189.0,3188.9,18.26]
[1642443821438,2.94501695,3189.0,3188.9,18.26]
[1642443821645,1.49509839,3189.0,3188.9,18.26]
[1642443822040,1.49509839,3189.0,3188.9,19.26]
[1642443822440,1.49509839,3189.0,3188.9,18.26]
[1642443822847,1.49509839,3189.0,3188.9,19.26]
[1642443823046,1.18213218,3189.1,3188.9,19.26]
[1642443823244,1.18213218,3189.1,3189.0,10.58371]
[1642443823445,0.00113685,3189.1,3189.0,10.58371]
[1642443823746,0.00113685,3189.1,3189.0,9.58371]
[1642443823945,0.00113685,3189.1,3189.0,10.58371]
[1642443824145,0.00113685,3189.1,3189.0,15.58371]
[1642443824344,0.00113685,3189.1,3189.0,10.58371]
[1642443825295,0.00113685,3189.1,3189.0,10.88371]
[1642443825895,0.00113685,3189.1,3189.0,29.14371]
[1642443827799,0.00113685,3189.1,3189.0,29.44371]
[1642443830447,1.49509839,3189.5,3189.1,19.75]
[1642443830652,1.49509839,3189.5,3189.2,21.41371336]
[1642443830847,0.00170527,3189.4,3189.3,19.8269436]
[1642443831048,0.00170527,3189.4,3189.3,21.1269436]
[1642443831247,0.00170527,3189.4,3189.3,27.7269436]